[Event "Titled Tuesday Blitz August 15 Late 2023"]
[White "elpera"]
[Black "De Souza, Cristiano Gomes"]
[BlackFideId "2151758"]
[WhiteElo "2518"]
[BlackElo "2252"]
[Result "0-1"]
[Round "3"]
[TimeControl "180+1"]
[Date "2023.08.15"]
[WhiteClock "0:00:00"]
[BlackClock "0:00:23"]
[Board "118"]

1. d4 {[%clk 0:02:56]}  Nf6 {[%clk 0:02:56]} 2. Bg5 {[%clk 0:02:56]}  c5 {[%clk 0:02:52]} 3. Nc3 {[%clk 0:02:49]}  cxd4 {[%clk 0:02:51]} 4. Qxd4 {[%clk 0:02:49]}  Nc6 {[%clk 0:02:50]} 5. Qh4 {[%clk 0:02:50]}  e6 {[%clk 0:02:47]} 6. O-O-O {[%clk 0:02:47]}  Be7 {[%clk 0:02:44]} 7. e4 {[%clk 0:02:41]}  h6 {[%clk 0:02:39]} 8. e5 {[%clk 0:02:26]}  Nd5 {[%clk 0:02:38]} 9. Bxe7 {[%clk 0:02:21]}  Qxe7 {[%clk 0:02:37]} 10. Qxe7+ {[%clk 0:02:19]}  Ncxe7 {[%clk 0:02:32]} 11. Ne4 {[%clk 0:02:01]}  Ng6 {[%clk 0:02:29]} 12. Nd6+ {[%clk 0:01:49]}  Ke7 {[%clk 0:02:28]} 13. Nf3 {[%clk 0:01:48]}  f6 {[%clk 0:02:16]} 14. exf6+ {[%clk 0:01:35]}  gxf6 {[%clk 0:02:01]} 15. c4 {[%clk 0:01:13]}  Kxd6 {[%clk 0:01:51]} 16. cxd5 {[%clk 0:01:12]}  exd5 {[%clk 0:01:46]} 17. Bc4 {[%clk 0:00:53]}  Ne7 {[%clk 0:01:46]} 18. Rhe1 {[%clk 0:00:37]}  b6 {[%clk 0:01:40]} 19. Bb3 {[%clk 0:00:27]}  Bb7 {[%clk 0:01:39]} 20. Nd4 {[%clk 0:00:27]}  Rac8+ {[%clk 0:01:38]} 21. Kb1 {[%clk 0:00:26]}  a6 {[%clk 0:01:34]} 22. g3 {[%clk 0:00:21]}  h5 {[%clk 0:01:32]} 23. h4 {[%clk 0:00:20]}  Rhg8 {[%clk 0:01:28]} 24. Re3 {[%clk 0:00:18]}  Rg4 {[%clk 0:01:27]} 25. Ne2 {[%clk 0:00:13]}  Nf5 {[%clk 0:01:18]} 26. Red3 {[%clk 0:00:12]}  Ne7 {[%clk 0:01:11]} 27. Nf4 {[%clk 0:00:11]}  Rc5 {[%clk 0:01:09]} 28. Nxh5 {[%clk 0:00:11]}  Re4 {[%clk 0:01:05]} 29. R3d2 {[%clk 0:00:09]}  f5 {[%clk 0:01:01]} 30. Nf4 {[%clk 0:00:10]}  Ke5 {[%clk 0:00:51]} 31. h5 {[%clk 0:00:10]}  d4 {[%clk 0:00:49]} 32. h6 {[%clk 0:00:09]}  Rc8 {[%clk 0:00:48]} 33. f3 {[%clk 0:00:06]}  Re3 {[%clk 0:00:47]} 34. Rxd4 {[%clk 0:00:03]}  Bxf3 {[%clk 0:00:44]} 35. Rxd7 {[%clk 0:00:03]}  Bxd1 {[%clk 0:00:42]} 36. Rxe7+ {[%clk 0:00:03]}  Kd4 {[%clk 0:00:41]} 37. Rxe3 {[%clk 0:00:03]}  Kxe3 {[%clk 0:00:41]} 38. Bxd1 {[%clk 0:00:03]}  Rh8 {[%clk 0:00:38]} 39. Bc2 {[%clk 0:00:01]}  Rxh6 {[%clk 0:00:37]} 40. Bxf5 {[%clk 0:00:02]}  Rh1+ {[%clk 0:00:36]} 41. Kc2 {[%clk 0:00:02]}  Rg1 {[%clk 0:00:37]} 42. Nh5 {[%clk 0:00:01]}  Rg2+ {[%clk 0:00:34]} 43. Kb3 {[%clk 0:00:01]}  b5 {[%clk 0:00:33]} 44. g4 {[%clk 0:00:01]}  Kd4 {[%clk 0:00:32]} 45. Nf6 {[%clk 0:00:01]}  a5 {[%clk 0:00:32]} 46. Nd7 {[%clk 0:00:01]}  a4+ {[%clk 0:00:26]} 47. Kb4 {[%clk 0:00:01]}  Rxb2+ {[%clk 0:00:25]} 48. Ka5 {[%clk 0:00:01]}  Rxa2 {[%clk 0:00:23]} 49. g5 {[%clk 0:00:02]}  Rg2 {[%clk 0:00:22]} 50. g6 {[%clk 0:00:02]}  a3 {[%clk 0:00:23]} 51. Kxb5 {[%clk 0:00:00]}  a2 {[%clk 0:00:23]} 0-1


[Site "https://www.chess.com"]

[Event "Titled Tuesday Blitz August 15 Late 2023"]
[White "Kashefi, Amir Hosein"]
[Black "Kalaiyalahan, Akshaya"]
[WhiteFideId "12557935"]
[BlackFideId "422894"]
[WhiteElo "2517"]
[BlackElo "2243"]
[Result "1-0"]
[Round "3"]
[TimeControl "180+1"]
[Date "2023.08.15"]
[WhiteClock "0:00:55"]
[BlackClock "0:00:00"]
[Board "119"]

1. e4 {[%clk 0:03:00]}  e6 {[%clk 0:02:51]} 2. d4 {[%clk 0:03:00]}  d5 {[%clk 0:02:50]} 3. Nc3 {[%clk 0:03:01]}  dxe4 {[%clk 0:02:48]} 4. Nxe4 {[%clk 0:03:01]}  Nf6 {[%clk 0:02:49]} 5. Bg5 {[%clk 0:02:59]}  Be7 {[%clk 0:02:48]} 6. Bxf6 {[%clk 0:02:59]}  Bxf6 {[%clk 0:02:48]} 7. Nf3 {[%clk 0:03:00]}  O-O {[%clk 0:02:48]} 8. c3 {[%clk 0:02:59]}  b6 {[%clk 0:02:40]} 9. Ng3 {[%clk 0:02:56]}  Bb7 {[%clk 0:02:40]} 10. Bd3 {[%clk 0:02:55]}  Nd7 {[%clk 0:02:37]} 11. O-O {[%clk 0:02:54]}  c5 {[%clk 0:02:37]} 12. dxc5 {[%clk 0:02:49]}  Nxc5 {[%clk 0:02:36]} 13. Bc2 {[%clk 0:02:47]}  Qxd1 {[%clk 0:02:34]} 14. Raxd1 {[%clk 0:02:36]}  Bxf3 {[%clk 0:02:33]} 15. gxf3 {[%clk 0:02:36]}  Rfd8 {[%clk 0:02:32]} 16. Kg2 {[%clk 0:02:36]}  g6 {[%clk 0:02:28]} 17. Ne4 {[%clk 0:02:35]}  Nxe4 {[%clk 0:02:26]} 18. fxe4 {[%clk 0:02:36]}  Rxd1 {[%clk 0:02:23]} 19. Rxd1 {[%clk 0:02:36]}  Rd8 {[%clk 0:02:23]} 20. Rxd8+ {[%clk 0:02:37]}  Bxd8 {[%clk 0:02:23]} 21. f4 {[%clk 0:02:37]}  Kg7 {[%clk 0:02:10]} 22. Kf3 {[%clk 0:02:36]}  f5 {[%clk 0:02:04]} 23. e5 {[%clk 0:02:36]}  Bh4 {[%clk 0:01:54]} 24. b4 {[%clk 0:02:35]}  Be1 {[%clk 0:01:53]} 25. Bb3 {[%clk 0:02:31]}  Kf7 {[%clk 0:01:49]} 26. b5 {[%clk 0:02:30]}  Bxc3 {[%clk 0:01:48]} 27. Ke3 {[%clk 0:02:28]}  Ke7 {[%clk 0:01:41]} 28. Kf3 {[%clk 0:02:25]}  h6 {[%clk 0:01:40]} 29. h3 {[%clk 0:02:23]}  g5 {[%clk 0:01:39]} 30. Bc4 {[%clk 0:02:20]}  Bd2 {[%clk 0:01:35]} 31. fxg5 {[%clk 0:02:13]}  hxg5 {[%clk 0:01:36]} 32. h4 {[%clk 0:01:46]}  g4+ {[%clk 0:01:23]} 33. Ke2 {[%clk 0:01:46]}  Bf4 {[%clk 0:01:22]} 34. h5 {[%clk 0:01:45]}  Bxe5 {[%clk 0:01:21]} 35. h6 {[%clk 0:01:45]}  f4 {[%clk 0:01:16]} 36. h7 {[%clk 0:01:44]}  Bf6 {[%clk 0:01:09]} 37. Kf2 {[%clk 0:01:26]}  e5 {[%clk 0:01:05]} 38. Bd3 {[%clk 0:01:26]}  Kd6 {[%clk 0:01:01]} 39. Bf5 {[%clk 0:01:26]}  Kd5 {[%clk 0:00:57]} 40. Bxg4 {[%clk 0:01:26]}  e4 {[%clk 0:00:55]} 41. Bf5 {[%clk 0:01:23]}  Kd4 {[%clk 0:00:50]} 42. a4 {[%clk 0:01:11]}  Ke5 {[%clk 0:00:42]} 43. Bg6 {[%clk 0:01:10]}  Kd4 {[%clk 0:00:24]} 44. Bf5 {[%clk 0:01:10]}  e3+ {[%clk 0:00:22]} 45. Kf3 {[%clk 0:01:09]}  Be5 {[%clk 0:00:22]} 46. Bg6 {[%clk 0:01:06]}  Kc3 {[%clk 0:00:22]} 47. Ke2 {[%clk 0:01:04]}  Kb3 {[%clk 0:00:21]} 48. Bd3 {[%clk 0:00:57]}  Kxa4 {[%clk 0:00:21]} 49. Kf3 {[%clk 0:00:58]}  Kb4 {[%clk 0:00:21]} 50. Ke4 {[%clk 0:00:58]}  Bh8 {[%clk 0:00:19]} 51. Kxf4 {[%clk 0:00:58]}  Bd4 {[%clk 0:00:15]} 52. Ke4 {[%clk 0:00:57]}  Kc3 {[%clk 0:00:15]} 53. Be2 {[%clk 0:00:55]}  Bg7 {[%clk 0:00:07]} 54. Kxe3 {[%clk 0:00:55]}  Kc2 {[%clk 0:00:04]} 55. Ke4 {[%clk 0:00:54]}  Kd2 {[%clk 0:00:04]} 56. Bf1 {[%clk 0:00:54]}  Ke1 {[%clk 0:00:03]} 57. Bc4 {[%clk 0:00:54]}  Kd2 {[%clk 0:00:03]} 58. Kf5 {[%clk 0:00:54]}  Kc3 {[%clk 0:00:03]} 59. Bf1 {[%clk 0:00:54]}  Kb4 {[%clk 0:00:03]} 60. Ke6 {[%clk 0:00:54]}  Kc5 {[%clk 0:00:03]} 61. Kf7 {[%clk 0:00:54]}  Bd4 {[%clk 0:00:02]} 62. Kg8 {[%clk 0:00:54]}  Kd6 {[%clk 0:00:02]} 63. h8=Q {[%clk 0:00:54]}  Bxh8 {[%clk 0:00:01]} 64. Kxh8 {[%clk 0:00:55]}  Kc7 {[%clk 0:00:01]} 65. Kg7 {[%clk 0:00:55]}  Kb7 {[%clk 0:00:00]} 66. Kf7 {[%clk 0:00:55]} 1-0


[Site "https://www.chess.com"]

[Event "Titled Tuesday Blitz August 15 Late 2023"]
[White "Zampronha, Wladimir Camilo"]
[Black "Janaszak, Dawid"]
[WhiteFideId "2103087"]
[BlackFideId "1119206"]
[WhiteElo "2241"]
[BlackElo "2515"]
[Result "1/2-1/2"]
[Round "3"]
[TimeControl "180+1"]
[Date "2023.08.15"]
[WhiteClock "0:00:20"]
[BlackClock "0:00:09"]
[Board "120"]

1. e4 {[%clk 0:03:00]}  g6 {[%clk 0:02:58]} 2. d4 {[%clk 0:03:00]}  Bg7 {[%clk 0:02:58]} 3. Nc3 {[%clk 0:03:00]}  a6 {[%clk 0:02:58]} 4. g3 {[%clk 0:02:58]}  b5 {[%clk 0:02:58]} 5. Bg2 {[%clk 0:02:57]}  Bb7 {[%clk 0:02:58]} 6. Nge2 {[%clk 0:02:51]}  d6 {[%clk 0:02:57]} 7. O-O {[%clk 0:02:49]}  Nd7 {[%clk 0:02:57]} 8. a4 {[%clk 0:02:47]}  b4 {[%clk 0:02:55]} 9. Nd5 {[%clk 0:02:47]}  a5 {[%clk 0:02:53]} 10. c3 {[%clk 0:02:44]}  e6 {[%clk 0:02:49]} 11. Ne3 {[%clk 0:02:44]}  Ne7 {[%clk 0:02:44]} 12. f4 {[%clk 0:02:40]}  f5 {[%clk 0:02:30]} 13. d5 {[%clk 0:02:33]}  Nc5 {[%clk 0:02:19]} 14. dxe6 {[%clk 0:02:25]}  Nxe4 {[%clk 0:02:08]} 15. cxb4 {[%clk 0:02:15]}  axb4 {[%clk 0:02:05]} 16. Qb3 {[%clk 0:02:07]}  c5 {[%clk 0:01:59]} 17. Rd1 {[%clk 0:02:05]}  O-O {[%clk 0:01:55]} 18. Nc4 {[%clk 0:02:04]}  d5 {[%clk 0:01:51]} 19. Ne5 {[%clk 0:02:00]}  Qd6 {[%clk 0:01:40]} 20. Be3 {[%clk 0:01:55]}  c4 {[%clk 0:01:33]} 21. Qc2 {[%clk 0:01:38]}  b3 {[%clk 0:01:32]} 22. Qc1 {[%clk 0:01:38]}  Qxe6 {[%clk 0:01:27]} 23. Nd4 {[%clk 0:01:38]}  Qc8 {[%clk 0:01:24]} 24. Bd2 {[%clk 0:01:25]}  Nc6 {[%clk 0:01:15]} 25. Ndxc6 {[%clk 0:01:15]}  Bxc6 {[%clk 0:01:16]} 26. Bc3 {[%clk 0:01:14]}  Rd8 {[%clk 0:01:04]} 27. a5 {[%clk 0:01:07]}  Bb7 {[%clk 0:01:02]} 28. Qe3 {[%clk 0:00:58]}  Nxc3 {[%clk 0:01:01]} 29. Qxc3 {[%clk 0:00:56]}  Qc5+ {[%clk 0:01:00]} 30. Kh1 {[%clk 0:00:55]}  Rd6 {[%clk 0:00:40]} 31. Rd4 {[%clk 0:00:55]}  Rda6 {[%clk 0:00:36]} 32. Rad1 {[%clk 0:00:52]}  Rxa5 {[%clk 0:00:36]} 33. Bxd5+ {[%clk 0:00:50]}  Bxd5+ {[%clk 0:00:33]} 34. Rxd5 {[%clk 0:00:51]}  Qc7 {[%clk 0:00:27]} 35. Qxc4 {[%clk 0:00:40]}  Qxc4 {[%clk 0:00:20]} 36. Nxc4 {[%clk 0:00:41]}  Rxd5 {[%clk 0:00:17]} 37. Rxd5 {[%clk 0:00:42]}  Rc8 {[%clk 0:00:16]} 38. Na5 {[%clk 0:00:36]}  Rc1+ {[%clk 0:00:15]} 39. Kg2 {[%clk 0:00:36]}  Rc2+ {[%clk 0:00:16]} 40. Kh3 {[%clk 0:00:36]}  Rxb2 {[%clk 0:00:16]} 41. Rb5 {[%clk 0:00:36]}  Bc3 {[%clk 0:00:15]} 42. Rxb3 {[%clk 0:00:31]}  Rxb3 {[%clk 0:00:14]} 43. Nxb3 {[%clk 0:00:31]}  Kf7 {[%clk 0:00:13]} 44. Nc5 {[%clk 0:00:30]}  Ke7 {[%clk 0:00:13]} 45. Nd3 {[%clk 0:00:31]}  Kd6 {[%clk 0:00:12]} 46. g4 {[%clk 0:00:29]}  Kd5 {[%clk 0:00:12]} 47. gxf5 {[%clk 0:00:28]}  gxf5 {[%clk 0:00:13]} 48. Kg3 {[%clk 0:00:27]}  Ke4 {[%clk 0:00:13]} 49. Nf2+ {[%clk 0:00:27]}  Ke3 {[%clk 0:00:12]} 50. Nh3 {[%clk 0:00:27]}  Be1+ {[%clk 0:00:10]} 51. Kg2 {[%clk 0:00:27]}  h6 {[%clk 0:00:09]} 52. Kf1 {[%clk 0:00:26]}  Bh4 {[%clk 0:00:08]} 53. Kg2 {[%clk 0:00:26]}  Ke2 {[%clk 0:00:08]} 54. Ng1+ {[%clk 0:00:25]}  Ke3 {[%clk 0:00:08]} 55. Nh3 {[%clk 0:00:26]}  h5 {[%clk 0:00:09]} 56. Ng5 {[%clk 0:00:20]}  Kxf4 {[%clk 0:00:08]} 57. Ne6+ {[%clk 0:00:20]}  Ke3 {[%clk 0:00:07]} 58. Ng7 {[%clk 0:00:21]}  f4 {[%clk 0:00:07]} 59. Nxh5 {[%clk 0:00:21]}  f3+ {[%clk 0:00:07]} 60. Kf1 {[%clk 0:00:22]}  Bg5 {[%clk 0:00:06]} 61. Ng7 {[%clk 0:00:20]}  Bf4 {[%clk 0:00:06]} 62. Nf5+ {[%clk 0:00:21]}  Ke4 {[%clk 0:00:06]} 63. Ng3+ {[%clk 0:00:20]}  Bxg3 {[%clk 0:00:05]} 64. hxg3 {[%clk 0:00:20]}  Ke3 {[%clk 0:00:06]} 65. g4 {[%clk 0:00:20]}  Kf4 {[%clk 0:00:06]} 66. Kf2 {[%clk 0:00:20]}  Kxg4 {[%clk 0:00:06]} 67. Kf1 {[%clk 0:00:20]}  Kg3 {[%clk 0:00:07]} 68. Kg1 {[%clk 0:00:20]}  f2+ {[%clk 0:00:08]} 69. Kf1 {[%clk 0:00:20]}  Kf3 {[%clk 0:00:09]} 1/2-1/2


[Site "https://www.chess.com"]

[Event "Titled Tuesday Blitz August 15 Late 2023"]
[White "Hristodoulou, Panagiotis"]
[Black "Ottosen, David"]
[WhiteFideId "4214340"]
[BlackFideId "2603080"]
[WhiteElo "2505"]
[BlackElo "2128"]
[Result "1-0"]
[Round "3"]
[TimeControl "180+1"]
[Date "2023.08.15"]
[WhiteClock "0:02:32"]
[BlackClock "0:02:25"]
[Board "127"]

1. d4 {[%clk 0:02:52]}  d5 {[%clk 0:02:59]} 2. Bf4 {[%clk 0:02:51]}  c6 {[%clk 0:02:59]} 3. e3 {[%clk 0:02:50]}  Qb6 {[%clk 0:02:59]} 4. Qc1 {[%clk 0:02:39]}  Bd7 {[%clk 0:02:59]} 5. c4 {[%clk 0:02:39]}  e6 {[%clk 0:02:58]} 6. Nc3 {[%clk 0:02:38]}  Nf6 {[%clk 0:02:58]} 7. Nf3 {[%clk 0:02:38]}  Be7 {[%clk 0:02:55]} 8. Bd3 {[%clk 0:02:39]}  O-O {[%clk 0:02:55]} 9. O-O {[%clk 0:02:39]}  a6 {[%clk 0:02:52]} 10. h3 {[%clk 0:02:36]}  Qd8 {[%clk 0:02:49]} 11. Qc2 {[%clk 0:02:36]}  Re8 {[%clk 0:02:46]} 12. Rad1 {[%clk 0:02:34]}  h6 {[%clk 0:02:40]} 13. Rfe1 {[%clk 0:02:33]}  Bc8 {[%clk 0:02:32]} 14. e4 {[%clk 0:02:33]}  dxe4 {[%clk 0:02:31]} 15. Nxe4 {[%clk 0:02:34]}  Nxe4 {[%clk 0:02:32]} 16. Bxe4 {[%clk 0:02:34]}  Nd7 {[%clk 0:02:31]} 17. d5 {[%clk 0:02:34]}  exd5 {[%clk 0:02:31]} 18. cxd5 {[%clk 0:02:35]}  cxd5 {[%clk 0:02:26]} 19. Bc7 {[%clk 0:02:33]}  dxe4 {[%clk 0:02:26]} 20. Bxd8 {[%clk 0:02:33]}  exf3 {[%clk 0:02:25]} 21. Bxe7 {[%clk 0:02:32]} 1-0


[Site "https://www.chess.com"]

[Event "Titled Tuesday Blitz August 15 Late 2023"]
[White "Phillips, Rene"]
[Black "Castella Garcia, Fausto"]
[WhiteFideId "2056275"]
[BlackFideId "3501922"]
[WhiteElo "2092"]
[BlackElo "2505"]
[Result "1/2-1/2"]
[Round "3"]
[TimeControl "180+1"]
[Date "2023.08.15"]
[WhiteClock "0:00:12"]
[BlackClock "0:00:16"]
[Board "128"]

1. d4 {[%clk 0:03:00]}  Nf6 {[%clk 0:02:59]} 2. Bf4 {[%clk 0:03:01]}  g6 {[%clk 0:02:58]} 3. e3 {[%clk 0:03:01]}  Bg7 {[%clk 0:02:59]} 4. Nf3 {[%clk 0:03:02]}  O-O {[%clk 0:02:59]} 5. h3 {[%clk 0:03:02]}  d6 {[%clk 0:03:00]} 6. Nbd2 {[%clk 0:03:02]}  Nfd7 {[%clk 0:03:00]} 7. Bc4 {[%clk 0:03:02]}  e5 {[%clk 0:02:58]} 8. dxe5 {[%clk 0:03:02]}  Nxe5 {[%clk 0:02:59]} 9. Nxe5 {[%clk 0:03:01]}  dxe5 {[%clk 0:03:00]} 10. Bg3 {[%clk 0:03:00]}  Qe7 {[%clk 0:02:58]} 11. Qe2 {[%clk 0:02:58]}  b6 {[%clk 0:02:58]} 12. O-O {[%clk 0:02:56]}  Bb7 {[%clk 0:02:58]} 13. Rfd1 {[%clk 0:02:54]}  Nd7 {[%clk 0:02:54]} 14. Ba6 {[%clk 0:02:54]}  Bxa6 {[%clk 0:02:47]} 15. Qxa6 {[%clk 0:02:55]}  Nc5 {[%clk 0:02:47]} 16. Qc4 {[%clk 0:02:55]}  Rad8 {[%clk 0:02:31]} 17. a4 {[%clk 0:02:55]}  a5 {[%clk 0:02:29]} 18. Ne4 {[%clk 0:02:48]}  Nxe4 {[%clk 0:02:26]} 19. Qxe4 {[%clk 0:02:49]}  Qe6 {[%clk 0:02:23]} 20. Qb7 {[%clk 0:02:45]}  Qc4 {[%clk 0:02:19]} 21. Rxd8 {[%clk 0:02:20]}  Rxd8 {[%clk 0:02:18]} 22. c3 {[%clk 0:02:20]}  f5 {[%clk 0:02:09]} 23. Qf3 {[%clk 0:02:03]}  Qb3 {[%clk 0:01:48]} 24. Qe2 {[%clk 0:02:01]}  h5 {[%clk 0:01:40]} 25. Bh4 {[%clk 0:02:01]}  Rd7 {[%clk 0:01:37]} 26. g4 {[%clk 0:01:41]}  hxg4 {[%clk 0:01:35]} 27. hxg4 {[%clk 0:01:42]}  Qd5 {[%clk 0:01:25]} 28. gxf5 {[%clk 0:01:39]}  gxf5 {[%clk 0:01:26]} 29. Qh5 {[%clk 0:01:35]}  Qf7 {[%clk 0:01:19]} 30. Qxf7+ {[%clk 0:01:26]}  Kxf7 {[%clk 0:01:20]} 31. Kf1 {[%clk 0:01:18]}  Rd2 {[%clk 0:01:19]} 32. Rb1 {[%clk 0:01:18]}  Ke6 {[%clk 0:01:15]} 33. Ke1 {[%clk 0:01:19]}  Rd7 {[%clk 0:01:09]} 34. Rd1 {[%clk 0:01:17]}  Rxd1+ {[%clk 0:01:05]} 35. Kxd1 {[%clk 0:01:18]}  Kd5 {[%clk 0:01:04]} 36. Kc2 {[%clk 0:01:17]}  e4 {[%clk 0:01:02]} 37. Bg3 {[%clk 0:01:15]}  c6 {[%clk 0:01:03]} 38. b3 {[%clk 0:01:15]}  Be5 {[%clk 0:00:58]} 39. Bh4 {[%clk 0:01:08]}  Bc7 {[%clk 0:00:50]} 40. Bf6 {[%clk 0:01:03]}  b5 {[%clk 0:00:50]} 41. Bh4 {[%clk 0:00:58]}  bxa4 {[%clk 0:00:48]} 42. bxa4 {[%clk 0:00:59]}  Kc4 {[%clk 0:00:49]} 43. Bf6 {[%clk 0:00:56]}  Bd6 {[%clk 0:00:45]} 44. Bd8 {[%clk 0:00:52]}  Bc5 {[%clk 0:00:42]} 45. Bxa5 {[%clk 0:00:47]}  f4 {[%clk 0:00:43]} 46. Bc7 {[%clk 0:00:37]}  fxe3 {[%clk 0:00:42]} 47. fxe3 {[%clk 0:00:38]}  Bxe3 {[%clk 0:00:42]} 48. a5 {[%clk 0:00:31]}  Kb5 {[%clk 0:00:39]} 49. Kd1 {[%clk 0:00:30]}  Ba7 {[%clk 0:00:35]} 50. Ke2 {[%clk 0:00:29]}  Bg1 {[%clk 0:00:27]} 51. Bb6 {[%clk 0:00:16]}  Bxb6 {[%clk 0:00:26]} 52. axb6 {[%clk 0:00:17]}  Kxb6 {[%clk 0:00:27]} 53. Ke3 {[%clk 0:00:17]}  Kc5 {[%clk 0:00:27]} 54. Kxe4 {[%clk 0:00:16]}  Kc4 {[%clk 0:00:28]} 55. Ke5 {[%clk 0:00:13]}  c5 {[%clk 0:00:22]} 56. Kd6 {[%clk 0:00:12]}  Kxc3 {[%clk 0:00:16]} 57. Kxc5 {[%clk 0:00:12]} 1/2-1/2


[Site "https://www.chess.com"]

[Event "Titled Tuesday Blitz August 15 Late 2023"]
[White "Pinheiro, Iung Alicio de O."]
[Black "Bryant, Todd"]
[WhiteFideId "2104350"]
[BlackFideId "2031299"]
[WhiteElo "2612"]
[BlackElo "2359"]
[Result "0-1"]
[Round "3"]
[TimeControl "180+1"]
[Date "2023.08.15"]
[WhiteClock "0:00:00"]
[BlackClock "0:00:57"]
[Board "132"]

1. e4 {[%clk 0:03:00]}  c5 {[%clk 0:02:53]} 2. Nc3 {[%clk 0:02:57]}  d6 {[%clk 0:02:53]} 3. f4 {[%clk 0:02:55]}  g6 {[%clk 0:02:52]} 4. Nf3 {[%clk 0:02:54]}  Bg7 {[%clk 0:02:52]} 5. Bc4 {[%clk 0:02:51]}  Nc6 {[%clk 0:02:50]} 6. d3 {[%clk 0:02:51]}  e6 {[%clk 0:02:45]} 7. O-O {[%clk 0:02:51]}  Nge7 {[%clk 0:02:44]} 8. Qe1 {[%clk 0:02:51]}  O-O {[%clk 0:02:44]} 9. Qh4 {[%clk 0:02:32]}  d5 {[%clk 0:02:24]} 10. Bb3 {[%clk 0:02:29]}  Nd4 {[%clk 0:02:17]} 11. f5 {[%clk 0:02:19]}  Nxf3+ {[%clk 0:02:11]} 12. Rxf3 {[%clk 0:02:13]}  gxf5 {[%clk 0:02:12]} 13. Bg5 {[%clk 0:01:43]}  f6 {[%clk 0:01:58]} 14. Bh6 {[%clk 0:01:40]}  Ng6 {[%clk 0:01:51]} 15. Qh5 {[%clk 0:01:40]}  Bxh6 {[%clk 0:01:37]} 16. Qxh6 {[%clk 0:01:38]}  fxe4 {[%clk 0:01:37]} 17. dxe4 {[%clk 0:01:37]}  c4 {[%clk 0:01:30]} 18. Rh3 {[%clk 0:01:04]}  Rf7 {[%clk 0:01:28]} 19. Ba4 {[%clk 0:00:55]}  a6 {[%clk 0:01:15]} 20. Rd1 {[%clk 0:00:43]}  b5 {[%clk 0:01:10]} 21. exd5 {[%clk 0:00:37]}  bxa4 {[%clk 0:01:11]} 22. Kh1 {[%clk 0:00:19]}  exd5 {[%clk 0:01:08]} 23. Rxd5 {[%clk 0:00:14]}  Qe7 {[%clk 0:01:03]} 24. Re3 {[%clk 0:00:11]}  Qf8 {[%clk 0:01:00]} 25. Qh5 {[%clk 0:00:06]}  Bb7 {[%clk 0:00:59]} 26. Rf5 {[%clk 0:00:00]}  Re8 {[%clk 0:00:57]} 0-1


[Site "https://www.chess.com"]

[Event "Titled Tuesday Blitz August 15 Late 2023"]
[White "Cheer_Down"]
[Black "Ankerst, Mihael"]
[BlackFideId "14602369"]
[WhiteElo "2326"]
[BlackElo "2457"]
[Result "0-1"]
[Round "3"]
[TimeControl "180+1"]
[Date "2023.08.15"]
[WhiteClock "0:00:02"]
[BlackClock "0:00:49"]
[Board "134"]

1. e4 {[%clk 0:02:49]}  c5 {[%clk 0:02:59]} 2. Nf3 {[%clk 0:02:48]}  Qb6 {[%clk 0:02:58]} 3. Nc3 {[%clk 0:02:37]}  Nc6 {[%clk 0:02:58]} 4. g3 {[%clk 0:02:35]}  e6 {[%clk 0:02:58]} 5. Bg2 {[%clk 0:02:35]}  a6 {[%clk 0:02:57]} 6. O-O {[%clk 0:02:35]}  d6 {[%clk 0:02:58]} 7. b3 {[%clk 0:02:28]}  Be7 {[%clk 0:02:58]} 8. Bb2 {[%clk 0:02:28]}  Nf6 {[%clk 0:02:58]} 9. Na4 {[%clk 0:02:21]}  Qc7 {[%clk 0:02:56]} 10. d4 {[%clk 0:02:21]}  cxd4 {[%clk 0:02:56]} 11. Nxd4 {[%clk 0:02:21]}  Bd7 {[%clk 0:02:56]} 12. Nc3 {[%clk 0:02:14]}  b5 {[%clk 0:02:56]} 13. Re1 {[%clk 0:02:13]}  Rc8 {[%clk 0:02:55]} 14. Rc1 {[%clk 0:02:04]}  O-O {[%clk 0:02:54]} 15. Nce2 {[%clk 0:01:50]}  Rfd8 {[%clk 0:02:51]} 16. c4 {[%clk 0:01:48]}  Qb6 {[%clk 0:02:45]} 17. Nxc6 {[%clk 0:01:44]}  Bxc6 {[%clk 0:02:45]} 18. Nd4 {[%clk 0:01:44]}  Bb7 {[%clk 0:02:46]} 19. cxb5 {[%clk 0:01:25]}  axb5 {[%clk 0:02:45]} 20. Qd3 {[%clk 0:01:24]}  b4 {[%clk 0:02:45]} 21. h3 {[%clk 0:01:23]}  Rc5 {[%clk 0:02:44]} 22. Qe3 {[%clk 0:01:15]}  Rdc8 {[%clk 0:02:43]} 23. Rxc5 {[%clk 0:01:14]}  Rxc5 {[%clk 0:02:38]} 24. e5 {[%clk 0:01:07]}  Nd5 {[%clk 0:02:34]} 25. Qd2 {[%clk 0:00:34]}  dxe5 {[%clk 0:02:29]} 26. Rxe5 {[%clk 0:00:34]}  Bf6 {[%clk 0:02:20]} 27. Re1 {[%clk 0:00:33]}  Nc3 {[%clk 0:02:16]} 28. Bxb7 {[%clk 0:00:33]}  Qxb7 {[%clk 0:02:12]} 29. a4 {[%clk 0:00:31]}  Rd5 {[%clk 0:02:09]} 30. Bxc3 {[%clk 0:00:16]}  bxc3 {[%clk 0:02:09]} 31. Qxc3 {[%clk 0:00:17]}  Bxd4 {[%clk 0:02:01]} 32. Qc4 {[%clk 0:00:15]}  h5 {[%clk 0:01:55]} 33. h4 {[%clk 0:00:15]}  Qb6 {[%clk 0:01:21]} 34. Re2 {[%clk 0:00:14]}  Rf5 {[%clk 0:01:21]} 35. Qc8+ {[%clk 0:00:10]}  Kh7 {[%clk 0:01:21]} 36. Qc2 {[%clk 0:00:11]}  g6 {[%clk 0:01:14]} 37. Kg2 {[%clk 0:00:10]}  Qb7+ {[%clk 0:01:13]} 38. Kg1 {[%clk 0:00:10]}  Rf3 {[%clk 0:01:13]} 39. Qe4 {[%clk 0:00:07]}  Rxg3+ {[%clk 0:01:11]} 40. Kf1 {[%clk 0:00:06]}  Qxe4 {[%clk 0:00:59]} 41. Rxe4 {[%clk 0:00:07]}  Rg4 {[%clk 0:00:59]} 42. Rxg4 {[%clk 0:00:04]}  hxg4 {[%clk 0:01:00]} 43. Ke2 {[%clk 0:00:05]}  Kg7 {[%clk 0:00:54]} 44. b4 {[%clk 0:00:05]}  Kf6 {[%clk 0:00:54]} 45. a5 {[%clk 0:00:05]}  Ke5 {[%clk 0:00:54]} 46. b5 {[%clk 0:00:05]}  Kd6 {[%clk 0:00:49]} 47. f3 {[%clk 0:00:02]} 0-1


[Site "https://www.chess.com"]